bitfinex-derivatives/quotes_SOLF0:USTF0_20250307
["timestamp","ask_amount","ask_price","bid_price","bid_amount"]
[1741353565792,0.04410445,143.56,143.54,6.9663]
[1741353566590,7.00980445,143.56,143.53,7.01850438]
[1741353566999,0.04410445,143.56,143.53,0.05170438]
[1741353567197,6.9663,143.55,143.53,0.05170438]
[1741353567493,0.04410445,143.56,143.53,0.05170438]
[1741353567698,6.9665,143.54,143.53,0.05170438]
[1741353568797,6.9665,143.54,143.53,4.38e-06]
[1741353570493,25.28407837,143.54,143.53,4.38e-06]
[1741353570686,28.76407837,143.54,143.53,4.38e-06]
[1741353570891,25.28407837,143.54,143.53,4.38e-06]
[1741353572196,28.76407837,143.54,143.53,4.38e-06]
[1741353572394,6.9699,143.47,143.46,3.8578]
[1741353572699,27.56,143.5,143.46,3.8578]
[1741353573602,0.05264871,143.49,143.47,0.04703773]
[1741353574093,0.05264871,143.49,143.47,7.01673773]
[1741353574801,7.02154871,143.49,143.47,0.04703773]
[1741353575595,0.05264871,143.49,143.47,0.04703773]
[1741353576797,7.02184871,143.49,143.47,0.04703773]
[1741353577295,0.05264871,143.49,143.47,0.04703773]
[1741353577493,0.05264871,143.49,143.48,6.9694]
[1741353577699,27.46,143.53,143.47,0.04703773]
[1741353578004,6.9686,143.5,143.47,7.01663773]
[1741353578203,27.46,143.53,143.47,0.04703773]
[1741353578502,6.9694,143.48,143.47,0.04703773]
[1741353579196,0.04431438,143.49,143.47,0.04703773]
[1741353580005,0.04431438,143.49,143.47,7.01683773]
[1741353580302,0.04431438,143.49,143.47,0.04703773]
[1741353581302,0.04431438,143.49,143.48,6.9694]
[1741353581804,0.04431438,143.49,143.47,7.01663773]
[1741353582803,7.01331438,143.49,143.47,7.01663773]
[1741353583006,0.04431438,143.49,143.47,7.01663773]
[1741353583192,0.04431438,143.49,143.48,6.9694]
[1741353583904,0.04431438,143.49,143.47,0.04703773]
[1741353584103,0.04431438,143.49,143.47,7.01663773]
[1741353584801,7.01331438,143.49,143.47,7.01663773]
[1741353586503,0.04431438,143.49,143.47,0.04703773]
[1741353586697,6.9694,143.48,143.47,0.04703773]
[1741353589704,0.04431438,143.49,143.47,0.04703773]
[1741353590103,6.9694,143.48,143.47,0.04703773]
[1741353591212,34.1694,143.48,143.47,0.04703773]
[1741353591811,45.92045161,143.48,143.47,0.04703773]
[1741353592204,38.95105161,143.48,143.41,11.75105161]
[1741353592405,38.95105161,143.48,143.4,5.8719]
[1741353592406,6.9723,143.42,143.4,5.8719]
[1741353592704,38.97105161,143.44,143.4,3.8735]
[1741353592908,27.26,143.43,143.4,3.8735]
[1741353593512,27.3097865,143.43,143.4,1.93202544]
[1741353593813,6.9728,143.41,143.4,0.04772544]
[1741353596802,27.3097865,143.43,143.4,0.04772544]
[1741353597617,27.3097865,143.43,143.4,7.02102544]
[1741353597911,27.3097865,143.43,143.4,0.04772544]
[1741353598111,34.2816865,143.43,143.4,7.02092544]
[1741353598813,34.2816865,143.43,143.4,0.04772544]
[1741353599315,34.2816865,143.43,143.4,7.02082544]
[1741353600310,0.0497865,143.43,143.4,0.04772544]
[1741353600516,451.14,143.49,143.42,18.38714225]
[1741353600714,6.9697,143.48,143.42,18.38714225]
[1741353600917,27.14,143.49,143.45,6.9706]
[1741353601118,27.14,143.49,143.42,18.38714225]
[1741353601309,27.14,143.49,143.41,31.1306]
[1741353601823,0.05130376,143.46,143.44,0.05328268]
[1741353603313,0.05130376,143.46,143.44,7.02458268]
[1741353603513,0.05130376,143.46,143.44,0.05328268]
[1741353604419,0.05130376,143.46,143.44,7.02468268]
[1741353604620,0.05130376,143.46,143.44,0.05328268]
[1741353605421,6.9709,143.45,143.44,0.05328268]
[1741353606213,7.02200376,143.46,143.44,0.05328268]
[1741353606813,0.05130376,143.46,143.44,0.05328268]
[1741353607024,27.06,143.52,143.44,18.44042493]
[1741353607514,27.06,143.52,143.44,0.05328268]
[1741353607515,45.44714225,143.52,143.44,0.05328268]
[1741353608118,0.04769055,143.49,143.44,7.02438268]
[1741353608419,6.9698,143.48,143.44,7.02438268]
[1741353608620,0.04769055,143.49,143.44,0.05328268]
[1741353608919,6.9697,143.48,143.44,0.05328268]
[1741353609614,0.04769055,143.49,143.45,6.9706]
[1741353609820,0.04769055,143.49,143.44,18.44042493]
[1741353610922,0.04769055,143.49,143.44,0.05328268]
[1741353611124,6.9709,143.45,143.44,0.05328268]
[1741353612019,7.02274061,143.46,143.44,0.05328268]
[1741353612418,0.05204061,143.46,143.44,0.05328268]
[1741353612811,194.0,143.56,143.49,6.9687]
[1741353613017,45.48714225,143.57,143.47,18.38714225]
[1741353613231,45.48714225,143.57,143.48,2.0295]
[1741353613418,27.1,143.56,143.49,6.9687]
[1741353613825,6.9673,143.53,143.51,0.05116244]
[1741353614024,0.04672924,143.54,143.51,0.05116244]
[1741353614432,6.9675,143.52,143.51,6.244e-05]
[1741353614618,34.0675,143.52,143.51,6.244e-05]
[1741353615529,30.58,143.52,143.41,37.880636]
[1741353615718,18.38714225,143.49,143.41,37.880636]
[1741353615917,27.1,143.48,143.41,37.880636]
[1741353616725,0.04949145,143.46,143.43,0.04654454]
[1741353617431,6.9714,143.44,143.43,0.04654454]
[1741353617631,34.0314,143.44,143.43,4.454e-05]
[1741353619031,37.5114,143.44,143.43,4.454e-05]
[1741353621421,34.0314,143.44,143.43,4.454e-05]
[1741353621628,37.5114,143.44,143.43,4.454e-05]
[1741353622127,34.0314,143.44,143.43,4.454e-05]
[1741353625536,6.9714,143.44,143.43,4.454e-05]
[1741353627336,6.9711,143.45,143.43,4.454e-05]
[1741353627933,0.04949145,143.46,143.43,4.454e-05]
[1741353628140,6.9714,143.44,143.43,4.454e-05]
[1741353631338,10.4514,143.44,143.43,4.454e-05]
[1741353631543,18.38714225,143.4,143.32,39.820736]
[1741353631740,27.04,143.39,143.32,39.820736]
[1741353632043,6.9767,143.33,143.32,39.820736]
[1741353632449,18.38714225,143.38,143.32,39.820736]
[1741353632647,7.02644848,143.34,143.32,39.820736]
[1741353632948,0.05004848,143.34,143.32,1.9401]
[1741353633540,0.05004848,143.34,143.32,8.9173]
[1741353634252,6.9747,143.38,143.33,6.9767]
[1741353634449,27.04,143.39,143.33,6.9767]
[1741353634651,6.9745,143.38,143.34,6.9761]
[1741353635447,0.05237308,143.37,143.35,0.04630032]
[1741353635644,0.05237308,143.37,143.35,7.02180032]
[1741353636340,0.05237308,143.37,143.35,0.04630032]
[1741353637252,6.9753,143.36,143.35,0.04630032]
[1741353638049,0.05237308,143.37,143.35,0.04630032]
[1741353638846,6.9753,143.36,143.35,0.04630032]
[1741353639042,0.05237308,143.37,143.35,0.04630032]
[1741353639442,7.02737308,143.37,143.35,0.04630032]
[1741353639842,0.05237308,143.37,143.35,7.02200032]
[1741353640051,0.05237308,143.37,143.35,0.04630032]
[1741353641950,0.05237308,143.37,143.35,7.02180032]
[1741353642756,7.02717308,143.37,143.35,0.04630032]
[1741353643060,0.05237308,143.37,143.35,0.04630032]
[1741353643557,6.9753,143.36,143.35,0.04630032]
[1741353645851,0.05237308,143.37,143.35,0.04630032]
[1741353646055,0.05237308,143.37,143.35,7.02180032]
[1741353646556,0.05237308,143.37,143.35,0.04630032]
[1741353647149,0.05237308,143.37,143.35,7.02180032]
[1741353647348,26.94,143.4,143.35,0.04630032]
[1741353647546,6.9737,143.4,143.35,0.04630032]
[1741353647855,26.92,143.43,143.35,0.04630032]
[1741353648457,0.05229424,143.4,143.35,0.04630032]
[1741353649158,6.974,143.39,143.36,6.9749]
[1741353649458,6.974,143.39,143.36,8.9123]
[1741353649761,6.9743,143.38,143.36,8.9123]
[1741353650059,0.05229424,143.4,143.36,1.9374]
[1741353650259,7.02579424,143.4,143.36,1.9374]
[1741353650553,0.05229424,143.4,143.36,1.9374]
[1741353651358,0.05229424,143.4,143.38,6.974]
[1741353651553,0.05229424,143.4,143.36,1.9374]
[1741353651750,6.9746,143.38,143.36,1.9374]
[1741353652053,3.8594,143.38,143.36,1.9374]
[1741353652652,3.8594,143.38,143.37,1.9505]
[1741353653453,7.02609424,143.4,143.37,8.9252]
[1741353653956,7.02569424,143.4,143.37,8.925]
[1741353654960,0.05229424,143.4,143.37,1.9505]
[1741353655158,13.89061,143.45,143.38,1.9495]
[1741353655353,40.67061,143.45,143.38,1.9495]
[1741353655554,6.9719,143.43,143.39,6.9734]
[1741353655859,6.9719,143.43,143.38,1.9495]
[1741353656155,13.89061,143.45,143.38,1.9495]
[1741353656453,0.04669452,143.42,143.39,0.04739641]
[1741353656858,6.9729,143.41,143.39,0.04739641]
[1741353657959,0.04669452,143.42,143.39,0.04739641]
[1741353658163,6.9733,143.4,143.39,0.04739641]
[1741353662060,26.66,143.41,143.39,0.04739641]
[1741353662263,33.6331,143.41,143.39,0.04739641]
[1741353662562,26.66,143.41,143.39,0.04739641]
[1741353663067,6.9733,143.4,143.39,0.04739641]
[1741353663966,33.633,143.41,143.39,0.04739641]
[1741353665069,6.9733,143.4,143.39,0.04739641]
[1741353665269,26.66,143.41,143.39,0.04739641]
[1741353665567,0.04669452,143.42,143.41,6.9728]
[1741353665867,7.65981,143.45,143.41,11.76663875]
[1741353666073,6.9722,143.43,143.4,11.76663875]
[1741353666563,19.42644875,143.45,143.39,26.60739641]
[1741353666768,7.01847556,143.42,143.39,26.60739641]
[1741353667257,0.04607556,143.42,143.39,26.60739641]
[1741353667468,0.04607556,143.42,143.39,38.37403516]
[1741353667770,0.04607556,143.42,143.4,6.9729]
[1741353668066,7.65981,143.45,143.41,11.76663875]
[1741353668768,7.65981,143.45,143.43,6.9716]
[1741353669268,7.70434849,143.45,143.44,6.9714]
[1741353669670,7.70434849,143.45,143.43,11.81326631]
[1741353669870,7.70434849,143.45,143.43,18.78496631]
[1741353670574,7.70434849,143.45,143.44,6.9714]
[1741353671171,0.04453849,143.45,143.44,6.9714]
[1741353674676,0.04453849,143.45,143.43,11.81326631]
[1741353674873,0.04453849,143.45,143.43,0.04662756]
[1741353675777,0.04453849,143.45,143.43,7.01822756]
[1741353675977,0.04453849,143.45,143.43,0.04662756]
[1741353676167,0.04453849,143.45,143.43,11.81326631]
[1741353676675,0.04453849,143.45,143.43,0.04662756]
[1741353676878,7.01563849,143.45,143.43,0.04662756]
[1741353677076,0.04453849,143.45,143.43,11.81326631]
[1741353678380,0.04453849,143.45,143.43,18.78506631]
[1741353678580,0.04453849,143.45,143.43,11.81326631]
[1741353679383,0.04453849,143.45,143.44,6.9714]
[1741353682383,232.10663875,143.54,143.44,30.1184]
[1741353682584,38.10663875,143.54,143.48,11.76663875]
[1741353683189,38.10663875,143.54,143.46,11.76663875]
[1741353683391,6.9689,143.49,143.48,0.04770332]
[1741353684087,38.10663875,143.5,143.42,38.10663875]
[1741353684282,11.76663875,143.43,143.36,28.36975233]
[1741353684488,11.76663875,143.37,143.36,17.47475233]
[1741353684688,38.12663875,143.37,143.36,17.47475233]
[1741353684991,38.12663875,143.37,143.36,5.233e-05]
[1741353685195,38.12663875,143.37,143.35,54.54892521]
[1741353685394,38.12663875,143.37,143.35,54.60174934]
[1741353685590,6.9753,143.36,143.35,9.98604934]
[1741353685782,38.12663875,143.37,143.34,109.96605867]
[1741353685783,41.60663875,143.37,143.34,109.96605867]
[1741353685989,11.76663875,143.35,143.34,109.96605867]
[1741353686288,11.76663875,143.35,143.34,37.32025867]
[1741353686289,18.74233875,143.35,143.34,37.32025867]
[1741353686490,28.87344217,143.35,143.34,236.41460277]
[1741353687091,28.87344217,143.35,143.34,223.40600277]
[1741353687298,28.87344217,143.35,143.34,197.52860277]
[1741353689597,28.87344217,143.35,143.34,136.93144037]
[1741353689796,28.87344217,143.35,143.34,83.20354037]
[1741353690899,28.87344217,143.35,143.33,0.0477942]
[1741353690900,6.9762,143.34,143.33,0.0477942]
[1741353699407,18.46591439,143.35,143.24,18.41774217]
[1741353699704,18.41774217,143.33,143.27,6.40449]
[1741353699906,26.28,143.32,143.27,6.40449]
[1741353700406,18.41774217,143.29,143.27,6.40449]
[1741353700605,25.39644217,143.29,143.28,0.04722536]
[1741353700804,51.79644217,143.29,143.28,0.04722536]
[1741353701898,73.69418434,143.29,143.28,0.04722536]
[1741353702805,55.27644217,143.29,143.28,0.04722536]
[1741353704103,51.79644217,143.29,143.28,0.04722536]
[1741353705101,55.27644217,143.29,143.28,0.04722536]
[1741353705304,6.9807,143.25,143.19,2.0737]
[1741353705601,6.9807,143.25,143.16,4.0001]
[1741353705602,26.34,143.24,143.16,4.0001]
[1741353705804,6.9819,143.23,143.16,4.0001]
[1741353706106,26.34,143.24,143.16,4.0001]
[1741353706508,0.05120634,143.21,143.19,0.04394682]
[1741353707004,0.05120634,143.21,143.2,6.9831]
[1741353707902,26.34,143.24,143.19,0.04394682]
[1741353708104,26.34,143.24,143.23,6.9816]
[1741353708413,26.34,143.24,143.16,22.41784217]
[1741353709108,0.05174097,143.21,143.19,0.04988692]
[1741353710010,26.28,143.2,143.19,0.04988692]
[1741353711304,33.2631,143.2,143.19,0.04988692]
[1741353711802,26.28,143.2,143.08,18.41774217]
[1741353712110,18.41774217,143.15,143.01,15.20004795]
[1741353712308,6.9869,143.13,143.05,18.41774217]
[1741353712508,26.28,143.14,143.05,18.41774217]
[1741353712703,18.41774217,143.13,143.03,18.41774217]
[1741353712906,0.04496219,143.09,143.07,0.04529214]
[1741353713097,26.28,143.14,143.08,6.9889]
[1741353713303,26.28,143.14,143.07,0.04529214]
[1741353713606,0.05285253,143.12,143.07,0.04529214]
[1741353713906,18.41774217,143.11,143.07,0.04529214]
[1741353714099,26.28,143.1,143.07,0.04529214]
[1741353715213,6.9889,143.08,143.07,0.04529214]
[1741353715916,18.46545906,143.09,143.02,3.9366]
[1741353716616,25.45425906,143.09,143.03,6.9912]
[1741353716804,0.04771689,143.09,143.02,3.9366]
[1741353717010,0.04771689,143.09,143.05,7.04363405]
[1741353717308,0.04771689,143.09,143.05,0.05343405]
[1741353717712,0.04771689,143.09,143.06,6.9898]
[1741353717916,0.04771689,143.09,143.05,0.05343405]
[1741353718114,7.03611689,143.09,143.05,7.04373405]
[1741353718414,0.04771689,143.09,143.05,0.05343405]
[1741353719515,0.04771689,143.09,143.06,6.9896]
[1741353719809,0.04771689,143.09,143.05,0.05343405]
[1741353720011,0.04771689,143.09,143.08,6.9889]
[1741353720217,28.95175474,143.11,143.06,2.0405]
[1741353720415,25.83245474,143.11,143.1,6.9879]
[1741353720614,10.23945474,143.11,143.1,6.9879]
[1741353720812,0.88335474,143.11,143.1,6.9879]
[1741353721012,76.6461366,143.12,143.11,6.9874]
[1741353721214,114.96920491,143.12,143.11,6.9874]
[1741353721408,114.96920491,143.12,143.11,6.92252583]
[1741353722513,0.04395423,143.13,143.11,6.92252583]
[1741353722712,0.04395423,143.13,143.1,0.05037559]
[1741353722713,0.04395423,143.13,143.12,6.987]
[1741353723921,26.48,143.18,143.17,6.9845]
[1741353724120,26.48,143.18,143.1,0.05037559]
[1741353724121,26.48,143.18,143.11,26.48]
[1741353724423,26.48,143.18,143.14,6.9857]
[1741353724613,19.70025088,143.17,143.11,18.43957529]
[1741353725019,0.04849105,143.15,143.14,6.986]
[1741353725219,0.04849105,143.15,143.13,0.04914518]
[1741353726927,0.04849105,143.15,143.14,6.986]
[1741353727129,0.04849105,143.15,143.13,0.04914518]
[1741353727627,7.03429105,143.15,143.13,0.04914518]
[1741353727815,0.04849105,143.15,143.13,0.04914518]
[1741353728019,0.04849105,143.15,143.13,7.03524518]
[1741353728222,0.04849105,143.15,143.13,0.04914518]
[1741353729327,0.04849105,143.15,143.13,7.03524518]
[1741353729626,0.04849105,143.15,143.13,0.04914518]
[1741353729825,6.986,143.14,143.13,0.04914518]
[1741353730330,26.58849105,143.15,143.06,29.55388696]
[1741353733523,0.05348778,143.12,143.1,6.9877]
[1741353734030,0.05348778,143.12,143.11,6.9874]
[1741353736230,8.778e-05,143.12,143.11,6.9874]
[1741353738633,8.778e-05,143.12,143.09,0.05260782]
[1741353739030,8.778e-05,143.12,143.1,6.9879]
[1741353739232,8.778e-05,143.12,143.09,0.05260782]
[1741353739631,8.778e-05,143.12,143.1,6.9878]
[1741353739932,8.778e-05,143.12,143.09,0.05260782]
[1741353740128,6.9877,143.11,143.09,0.05260782]
[1741353740433,8.778e-05,143.12,143.09,0.05260782]
[1741353741425,6.9879,143.1,143.09,0.05260782]
[1741353741628,8.778e-05,143.12,143.09,0.05260782]
[1741353742132,6.9879,143.1,143.09,0.05260782]
[1741353742331,8.778e-05,143.12,143.09,0.05260782]
[1741353742635,119.14607138,143.11,143.04,44.9406133]
[1741353742838,119.14607138,143.11,143.1,6.9879]
[1741353743129,119.14607138,143.11,143.04,44.9406133]
[1741353743828,0.0443775,143.09,143.07,6.9891]
[1741353744034,0.0443775,143.09,143.06,0.04818411]
[1741353745340,0.0443775,143.09,143.08,6.9889]
[1741353747540,77.26684204,143.12,143.08,48.5606133]
[1741353747736,66.48624204,143.12,143.11,6.9874]
[1741353747932,102.37540476,143.13,143.1,18.4606133]
[1741353748440,102.37540476,143.13,143.12,6.987]
[1741353748841,99.62982044,143.13,143.12,6.987]
[1741353750444,0.04960403,143.14,143.13,6.9865]
[1741353753251,4.03e-06,143.14,143.13,6.9865]
[1741353761352,4.03e-06,143.14,143.13,10.4865]
[1741353761651,4.03e-06,143.14,143.13,6.9865]
[1741353768955,4.03e-06,143.14,143.12,6.9869]
[1741353769359,4.03e-06,143.14,143.11,0.04581163]
[1741353769557,4.03e-06,143.14,143.13,6.9865]
[1741353771357,30.99729113,143.21,143.2,6.9831]
[1741353771750,30.99729113,143.21,143.17,18.4606133]
[1741353772660,30.99729113,143.21,143.2,6.9824]
[1741353772959,0.04518735,143.22,143.19,11.84509509]
[1741353773262,0.04518735,143.22,143.21,18.77841231]
[1741353774655,0.04518735,143.22,143.21,6.9819]
[1741353777847,8.735e-05,143.22,143.21,6.9819]
[1741353781151,4.0122,143.29,143.28,6.9785]
[1741353781351,4.0122,143.29,143.23,18.42372196]
[1741353782155,4.0122,143.29,143.27,6.9787]
[1741353782554,4.0634533,143.29,143.27,6.9787]
[1741353782861,6.9785,143.28,143.25,7.02914084]
[1741353783063,4.0634533,143.29,143.25,0.04944084]
[1741353784063,11.0417533,143.29,143.26,6.9793]
[1741353784264,4.0634533,143.29,143.25,0.04944084]
[1741353784861,6.9787,143.28,143.25,7.02914084]
[1741353785061,4.0634533,143.29,143.25,0.04944084]
[1741353785562,4.0634533,143.29,143.28,6.9785]
[1741353786262,4.0634533,143.29,143.25,0.04944084]
[1741353787065,4.0634533,143.29,143.28,6.9785]
[1741353787366,5.33e-05,143.29,143.28,52.38222196]
[1741353788370,29.06869113,143.37,143.28,67.30744392]
[1741353788569,29.06869113,143.37,143.36,6.9746]
[1741353788962,3.7641,143.39,143.38,6.9736]
[1741353789768,29.08918591,143.4,143.39,6.9731]
[1741353791473,0.02049478,143.4,143.39,6.9731]
[1741353792472,0.02049478,143.4,143.37,0.04964978]
[1741353792975,0.02049478,143.4,143.38,6.9736]
[1741353793172,0.02049478,143.4,143.37,0.04964978]
[1741353794375,0.02049478,143.4,143.38,6.9733]
[1741353794579,0.02049478,143.4,143.37,0.04964978]
[1741353795687,0.02049478,143.4,143.39,6.9731]
[1741353796182,0.02049478,143.4,143.37,0.04964978]
[1741353796380,0.02049478,143.4,143.37,26.98964978]
[1741353796882,0.02049478,143.4,143.39,6.9731]
[1741353797285,9.478e-05,143.4,143.39,6.9731]
[1741353801085,9.478e-05,143.4,143.33,18.42372196]
[1741353801285,3.8871,143.44,143.35,18.42372196]
[1741353801491,3.8871,143.44,143.38,18.42372196]
[1741353802184,3.8871,143.44,143.4,6.9724]
[1741353802382,0.04684189,143.42,143.4,0.05153232]
[1741353802583,0.04684189,143.42,143.36,27.86]
[1741353803290,0.04684189,143.42,143.37,6.9738]
[1741353803785,0.04684189,143.42,143.33,27.96]
[1741353803990,18.42372196,143.41,143.33,27.96]
[1741353804188,6.9744,143.37,143.3,18.42372196]
[1741353804487,6.9744,143.37,143.3,46.38372196]
[1741353805094,0.04848377,143.35,143.32,0.04823833]
[1741353805284,0.04848377,143.35,143.33,6.976]
[1741353805484,0.04848377,143.35,143.32,0.04823833]
[1741353805786,0.04848377,143.35,143.33,6.9756]
[1741353805992,0.04848377,143.35,143.32,0.04823833]
[1741353806185,8.377e-05,143.35,143.34,18.42372196]
[1741353806389,8.377e-05,143.35,143.34,53.33922196]
[1741353808188,8.377e-05,143.35,143.34,56.81922196]
[1741353808396,1.9709,143.42,143.41,6.9721]
[1741353811301,0.05175756,143.43,143.4,0.05043321]
[1741353811599,0.05175756,143.43,143.42,6.9716]
[1741353812188,5.756e-05,143.43,143.42,6.9716]
[1741353815005,5.756e-05,143.43,143.41,6.9719]
[1741353816200,5.756e-05,143.43,143.4,0.05043321]
[1741353816509,27.84,143.42,143.35,18.42372196]
[1741353816898,27.84,143.42,143.37,6.974]
[1741353817100,27.84,143.42,143.35,18.42372196]
[1741353817501,27.84,143.42,143.4,6.9723]
[1741353817905,27.88703372,143.42,143.4,6.9723]
[1741353818200,0.04703372,143.42,143.41,6.9721]
[1741353820210,3.372e-05,143.42,143.41,6.9721]
[1741353820411,3.372e-05,143.42,143.41,25.39582196]
[1741353821209,3.9274,143.45,143.41,18.42372196]
[1741353821508,31.13439113,143.5,143.43,18.42372196]
[1741353821808,4.0022,143.49,143.45,6.9701]
[1741353822404,7.0216784,143.48,143.46,0.04736615]
[1741353823407,6.9692,143.47,143.46,0.04736615]
[1741353823617,0.0528784,143.48,143.42,27.8]
[1741353823814,27.76,143.47,143.39,18.42372196]
[1741353824012,6.9702,143.46,143.39,18.42372196]
[1741353824205,27.76,143.47,143.39,18.42372196]
[1741353824512,34.7294,143.47,143.44,6.9703]
[1741353824806,0.05300163,143.46,143.42,0.04432534]
[1741353825014,0.05300163,143.46,143.43,18.42372196]
[1741353825509,0.05300163,143.46,143.45,6.9701]
[1741353826215,0.05300163,143.46,143.43,6.9711]
[1741353826812,0.05300163,143.46,143.42,27.82432534]
[1741353827009,0.05300163,143.46,143.45,6.9702]
[1741353828112,0.05300163,143.46,143.42,27.82432534]
[1741353829414,0.05300163,143.46,143.45,6.9702]
[1741353829710,7.02280163,143.46,143.44,6.9705]
[1741353829906,0.05300163,143.46,143.42,27.82432534]
[1741353831008,0.05300163,143.46,143.45,6.9702]
[1741353831205,0.05300163,143.46,143.42,27.82432534]
[1741353832412,0.05300163,143.46,143.45,6.9702]
[1741353832913,7.02300163,143.46,143.42,27.82432534]
[1741353833512,6.9706,143.45,143.42,7.01582534]
[1741353833715,27.69300163,143.46,143.42,0.04432534]
[1741353834720,6.9709,143.44,143.42,0.04432534]
[1741353834907,27.69300163,143.46,143.42,0.04432534]
[1741353835409,6.9704,143.45,143.42,0.04432534]
[1741353835612,27.69300163,143.46,143.42,0.04432534]
[1741353836523,6.9706,143.45,143.42,7.01582534]
[1741353836817,27.69300163,143.46,143.42,7.01582534]
[1741353837018,6.9705,143.45,143.42,7.01582534]
[1741353837622,27.69300163,143.46,143.36,193.0]
[1741353837819,6.9712,143.43,143.37,18.42372196]
[1741353838018,27.64,143.46,143.37,18.42372196]
[1741353838217,6.9722,143.41,143.38,6.9733]
[1741353838423,3.9381,143.42,143.37,18.42372196]
[1741353839120,0.04421467,143.41,143.38,0.05244184]
[1741353839721,0.04421467,143.41,143.4,6.9724]
[1741353839928,0.04421467,143.41,143.38,0.05244184]
[1741353840122,0.04421467,143.41,143.4,6.9726]
[1741353840423,0.04421467,143.41,143.38,0.05244184]
[1741353840825,0.04421467,143.41,143.39,6.9731]
[1741353841026,0.04421467,143.41,143.38,0.05244184]
[1741353842429,0.04421467,143.41,143.4,6.9726]
[1741353846832,0.04421467,143.41,143.38,0.05244184]
[1741353847325,7.01641467,143.41,143.38,0.05244184]
[1741353847727,0.04421467,143.41,143.38,0.05244184]
[1741353848527,0.04421467,143.41,143.39,6.9731]
[1741353848730,7.01661467,143.41,143.38,0.05244184]
[1741353849028,0.04421467,143.41,143.38,0.05244184]
[1741353849226,27.40421467,143.41,143.29,248.52372196]
[1741353849427,6.9735,143.39,143.31,18.42372196]
[1741353849624,27.36,143.41,143.31,18.42372196]
[1741353849824,27.36,143.41,143.36,6.9745]
[1741353850332,6.9729,143.4,143.37,6.9738]
[1741353850631,0.04486664,143.4,143.37,0.04692957]
[1741353852432,6.9732,143.39,143.37,7.02082957]
[1741353852631,0.04486664,143.4,143.37,0.04692957]
[1741353853626,0.04486664,143.4,143.39,6.9731]
[1741353855532,0.04486664,143.4,143.39,25.39682196]
[1741353862638,0.04486664,143.4,143.39,6.9731]
[1741353863233,7.01766664,143.4,143.38,6.9735]
[1741353863431,7.01766664,143.4,143.37,0.04692957]
[1741353864432,7.01766664,143.4,143.37,7.02072957]
[1741353864638,6.9736,143.38,143.37,0.04692957]
[1741353865538,3.9517,143.39,143.37,0.04692957]
[1741353865745,0.04486664,143.4,143.37,0.04692957]
[1741353865938,0.04486664,143.4,143.39,6.9731]
[1741353867644,0.04486664,143.4,143.38,6.9733]
[1741353868048,0.04486664,143.4,143.37,0.04692957]
[1741353868243,0.04486664,143.4,143.39,6.9731]
[1741353869745,6.664e-05,143.4,143.39,6.9731]
[1741353871952,6.664e-05,143.4,143.38,6.9732]
[1741353872650,6.664e-05,143.4,143.37,0.04692957]
[1741353872851,6.664e-05,143.4,143.38,6.9736]
[1741353873546,6.97296664,143.4,143.37,7.02082957]
[1741353873745,6.664e-05,143.4,143.37,0.04692957]
[1741353874046,6.664e-05,143.4,143.39,6.9731]
[1741353876552,6.664e-05,143.4,143.39,18.73670636]
[1741353879049,6.664e-05,143.4,143.37,11.81053593]
[1741353879351,6.664e-05,143.4,143.38,6.9733]
[1741353879753,6.664e-05,143.4,143.39,6.9731]
[1741353881556,6.664e-05,143.4,143.38,6.9733]
[1741353881950,6.664e-05,143.4,143.37,11.81053593]
[1741353882154,11.76360636,143.39,143.37,0.04692957]
[1741353882353,30.8886,143.38,143.32,11.76360636]
[1741353882554,11.76360636,143.37,143.33,6.9758]
[1741353882750,11.76360636,143.37,143.3,11.76360636]
[1741353883257,6.9758,143.34,143.31,6.9768]
[1741353883457,11.76360636,143.37,143.32,0.05347394]
[1741353883458,0.05192959,143.35,143.32,0.05347394]
[1741353884058,0.05192959,143.35,143.32,11.8170803]
[1741353884758,0.05192959,143.35,143.33,6.976]
[1741353885458,0.05192959,143.35,143.32,7.02967394]
[1741353885757,0.05192959,143.35,143.32,0.05347394]
[1741353886458,0.05192959,143.35,143.34,6.9755]
[1741353887260,0.05192959,143.35,143.34,18.73910636]
[1741353888650,0.05192959,143.35,143.33,6.9758]
[1741353889055,0.05192959,143.35,143.32,0.05347394]
[1741353889258,7.02732959,143.35,143.32,0.05347394]
[1741353890363,0.05192959,143.35,143.32,7.02967394]
[1741353892061,0.05192959,143.35,143.32,0.05347394]
[1741353892757,0.05192959,143.35,143.33,6.976]
[1741353892957,0.05192959,143.35,143.32,0.05347394]
[1741353893262,7.02722959,143.35,143.32,7.02957394]
[1741353893652,0.05192959,143.35,143.32,0.05347394]
[1741353893865,6.976,143.33,143.32,0.05347394]